Cogmind - Beta 12 *** ADVENTURER MODE // 2023.10.21 @ 14:56:42 Player: EveningMars Result: Destroyed by G-47 Trooper with Particle Gun Performance ------------- Evolutions (2) 1000 Regions Visited (6) 1200 Robots Destroyed (6) 30 Value Destroyed (156) 156 Prototype IDs (0) 0 Alien Tech Used (0) 0 Bonus (200) 200 TOTAL SCORE: 2586 Bonus ------- Entered Garrisons 200 Cogmind --------- Core Integrity 0/550 Matter 122/300 Energy 99/100 System Corruption 8% Temperature Cool (9) Movement Core (50) Location -8/Garrison Parts ------- > --- POWER (1) -------- (None) > --- PROPULSION (5) --- (None) > --- UTILITY (3) ------ Authchip [R/NC] > --- WEAPON (2) ------- (None) > --- INVENTORY (5) ---- Aluminum Leg Aluminum Leg Compact Wheel Peak State ------------ > --- POWER ------------ Ion Engine > --- PROPULSION ------- Flight Unit Flight Unit Flight Unit VTOL Module > --- UTILITY ---------- Small Storage Unit System Shield > --- WEAPON ----------- Improved Grenade Launcher > --- INVENTORY -------- Light Ion Engine Aluminum Leg Aluminum Leg Compact Wheel Flight Unit Flight Unit Flight Unit [Rating: 13] Favorites ----------- Power Ion Engine Engine Ion Engine Propulsion Flight Unit Leg Aluminum Leg Wheel Wheel Flight Unit Flight Unit Utility Small Storage Unit Storage Small Storage Unit Hackware System Shield Weapon Assault Rifle Energy Gun Small Laser Ballistic Gun Assault Rifle Launcher Improved Grenade Launcher Build | -11 -10 -9 -9 -8 -8 -8 ------- Run | Jun Mat Mat Min Mat Sto Gar Slots Evolved 4 | . . 2 . 2 . . Power . | . . . . . . . Propulsion 3 | . . 2 . 1 . . Utility 1 | . . . . 1 . . Weapon . | . . . . . . . Parts Attached 21 | 6 3 3 . 1 7 1 Power 2 | 1 . . . . 1 . Engine 2 | 1 . . . . 1 . Core . | . . . . . . . Reactor . | . . . . . . . Propulsion 13 | 2 3 3 . . 5 . Treads . | . . . . . . . Leg 1 | . . . . . 1 . Wheel 2 | 2 . . . . . . Hover . | . . . . . . . Flight 10 | . 3 3 . . 4 . Utility 3 | 1 . . . 1 . 1 Device . | . . . . . . . Storage 1 | 1 . . . . . . Processor . | . . . . . . . Hackware 2 | . . . . 1 . 1 Protection . | . . . . . . . Artifact . | . . . . . . . Weapon 3 | 2 . . . . 1 . Energy Gun 1 | 1 . . . . . . Energy Cannon . | . . . . . . . Ballistic Gun 1 | 1 . . . . . . Ballistic Cannon . | . . . . . . . Launcher 1 | . . . . . 1 . Special Weapon . | . . . . . . . Impact Weapon . | . . . . . . . Slashing Weapon . | . . . . . . . Piercing Weapon . | . . . . . . . Special Melee Weapon . | . . . . . . . Unidentified Prototypes . | . . . . . . . Parts Lost 12 | . . . . . 7 5 Power 2 | . . . . . 1 1 Propulsion 7 | . . . . . 5 2 Utility 2 | . . . . . . 2 Weapon 1 | . . . . . 1 . Highest Loss Streak 6 | . . . . . 6 5 To Critical Strikes . | . . . . . . . Average Slot Usage (%) 58 | . 73 66 66 63 60 42 Engine 9 | . 14 11 11 9 7 7 Wheel 4 | . 14 . . . . . Flight 21 | . 11 44 44 36 32 13 Storage 10 | . 14 11 11 9 9 7 Hackware 6 | . . . . 9 9 13 Energy Gun 2 | . 9 . . . . . Ballistic Gun 2 | . 9 . . . . . Naked Turns . | . . . . . . . Heaviest Build 13 | 13 13 10 10 10 11 8 Greatest Support 20 | 20 20 16 16 16 16 8 Greatest Overweight (x) 3 | 1 3 . . . . 2 Average Overweight (x) . | . . . . . . . Largest Inventory Capacity 8 | 8 8 8 8 8 8 8 Average Capacity 7 | 7 8 8 8 8 8 7 Most Carried 8 | 4 8 7 7 7 7 3 Average Carried 4 | 1 6 6 7 7 6 3 Final Capacity 8 | 8 8 8 8 8 8 5 Final Carried 8 | 4 8 7 7 7 3 3 Class Distribution -------------------- 42% | Mutant 34% | Hacker-Mutant 23% | Hacker-Sprinter Dominant Class ---------------- Mutant | -10/Materials Mutant | -9/Materials Mutant | -9/Mines Mutant | -8/Materials Hacker-Sprinter | -8/Storage Hacker-Mutant | -8/Garrison Resources | -11 -10 -9 -9 -8 -8 -8 ----------- Run | Jun Mat Mat Min Mat Sto Gar Matter Collected 246 | 134 31 . . . 81 . Remotely . | . . . . . . . Salvage Created 152 | . 89 . . . 63 . Parts 16 | . 11 . . . 5 . Haulers Intercepted . | . . . . . . . Recyclers Shooed . | . . . . . . . Parts Field Recycled . | . . . . . . . Retrieved Matter . | . . . . . . . Parts Self-Destructed . | . . . . . . . Prevented . | . . . . . . . Kills | -11 -10 -9 -9 -8 -8 -8 ------- Run | Jun Mat Mat Min Mat Sto Gar Combat Hostiles Destroyed 6 | . 4 . . . 2 . Guns 4 | . 4 . . . . . AOE 2 | . . . . . 2 . Classes Destroyed 3 | . 2 . . . 1 . Swarmer 3 | . 3 . . . . . Grunt 2 | . 1 . . . 1 . Sentry 1 | . . . . . 1 . Best Kill Streak 4 | . 4 . . . 2 . Combat Bots Only 4 | . 4 . . . 2 . Max Kills in Single Turn 2 | . 2 . . . 2 . Gunslinging 1 | . 1 . . . . . Exploded 2 | . . . . . 2 . Melee . | . . . . . . . Uniques/NPCs Destroyed . | . . . . . . . Combat | -11 -10 -9 -9 -8 -8 -8 -------- Run | Jun Mat Mat Min Mat Sto Gar Damage Taken 1136 | . 76 . . . 611 449 Core 560 | . 5 . . . 261 294 Absorbed by Shields 7 | . . . . . . 7 Core Remaining (%) 99 | 100 98 . 100 . . . Volleys Fired 12 | . 5 . . . 7 . Largest 2 | . 2 . . . 1 . Hottest 60 | . 60 . . . 36 . Shots Fired 17 | . 10 . . . 7 . Gun 10 | . 10 . . . . . Cannon . | . . . . . . . Launcher 7 | . . . . . 7 . Special . | . . . . . . . Kinetic 5 | . 5 . . . . . Thermal 5 | . 5 . . . . . Explosive 7 | . . . . . 7 . Electromagnetic . | . . . . . . . Robot Hit Streak 7 | . 7 . . . 1 . Robot Miss Streak 1 | . 1 . . . 1 . Penetration Max . | . . . . . . . Secondary Targets 1 | . 1 . . . . . Max Gunslinging Chain 1 | . 1 . . . . . Shots Hit Robots 10 | . 9 . . . 1 . Core Hits 17 | . 5 . . . 10 2 Critical Kills . | . . . . . . . Critical Parts Destroyed . | . . . . . . . Critical Strikes . | . . . . . . . Melee Attacks . | . . . . . . . Impact . | . . . . . . . Slashing . | . . . . . . . Piercing . | . . . . . . . Sneak Attacks . | . . . . . . . Combat Hostiles . | . . . . . . . Follow-up Attacks . | . . . . . . . Damage Inflicted 523 | . 113 . . . 368 42 Guns 113 | . 113 . . . . . Cannons . | . . . . . . . Explosions 368 | . . . . . 368 . Melee . | . . . . . . . Ramming 42 | . . . . . . 42 Kinetic 70 | . 70 . . . . . Thermal 43 | . 43 . . . . . Explosive 368 | . . . . . 368 . Electromagnetic . | . . . . . . . Impact . | . . . . . . . Slashing . | . . . . . . . Piercing . | . . . . . . . Highest Corruption 8 | . . 1 1 . 1 8 Average Corruption 1 | . . 1 1 . 1 1 Corruption Purged . | . . . . . . . Corruption Blocked . | . . . . . . . Effects 2 | . . . . . 1 1 Message Errors 1 | . . . . . . 1 Parts Rejected 1 | . . . . . 1 . Overload Shots . | . . . . . . . Overflow Damage 22 | . . . . . 22 . Projectiles . | . . . . . . . Explosions 22 | . . . . . 22 . Melee . | . . . . . . . Knockbacks . | . . . . . . . Impact . | . . . . . . . Kinetic . | . . . . . . . Secondary . | . . . . . . . Self-Inflicted Damage 101 | . . . . . 83 18 Shots 4 | . . . . . 4 . Rammed 10 | . . . . . . 10 Targets Rammed 10 | . . . . . . 10 Kicked . | . . . . . . . Crushed . | . . . . . . . Highest Temperature 17 | . 12 . . . 17 . Average Temperature 8 | . 8 . . . 9 . Received Heat Transfer 362 | . 21 . . . 243 98 Siege Activations . | . . . . . . . Robots Corrupted . | . . . . . . . Combat Hostiles . | . . . . . . . Parts Fried . | . . . . . . . Impact Corruptions . | . . . . . . . Robots Melted . | . . . . . . . Combat Hostiles . | . . . . . . . Parts Melted . | . . . . . . . Heat Transferred 100 | . 100 . . . . . Parts Sabotaged . | . . . . . . . Parts Stolen . | . . . . . . . Parts Stripped . | . . . . . . . Power Chain Reactions . | . . . . . . . Missiles Intercepted . | . . . . . . . Alert | -11 -10 -9 -9 -8 -8 -8 ------- Run | Jun Mat Mat Min Mat Sto Gar Peak Influence 200 | . 90 47 15 4 200 126 Initial 111 | . . 32 15 4 1 111 Average 73 | . 49 36 15 4 115 106 Maximum Alert Level 1 | . . . . . 1 . Low Security (%) 98 | 100 100 100 100 100 93 100 Level 1 1 | . . . . . 6 . Level 2 . | . . . . . . . Level 3 . | . . . . . . . Level 4 . | . . . . . . . Level 5 . | . . . . . . . High Security . | . . . . . . . Max Security . | . . . . . . . Squads Dispatched 1 | . . . . . 1 . Investigation . | . . . . . . . Extermination . | . . . . . . . Reinforcement . | . . . . . . . Assault . | . . . . . . . Garrison 1 | . . . . . 1 . Intercept . | . . . . . . . Searches Triggered . | . . . . . . . Construction Impeded . | . . . . . . . Haulers Reinforced . | . . . . . . . Active Scanning Responses . | . . . . . . . Cargo Convoy Interrupts . | . . . . . . . Stealth | -11 -10 -9 -9 -8 -8 -8 --------- Run | Jun Mat Mat Min Mat Sto Gar Distress Signals 1 | . . . . . 1 . Communications Jammed . | . . . . . . . Distress Signals . | . . . . . . . Times Spotted 29 | . 5 1 . . 18 5 Peak Tracking Total 12 | . 4 1 . . 12 7 Tactical Retreats 2 | . . . . . 2 . Traps | -11 -10 -9 -9 -8 -8 -8 ------- Run | Jun Mat Mat Min Mat Sto Gar Traps Triggered 4 | . . 1 . . 1 2 Indirectly . | . . . . . . . Trap Hack Attempts . | . . . . . . . Triggered . | . . . . . . . Disarmed . | . . . . . . . Reprogrammed . | . . . . . . . Reused . | . . . . . . . Traps Extracted . | . . . . . . . Installed . | . . . . . . . Triggered . | . . . . . . . Machines | -11 -10 -9 -9 -8 -8 -8 ---------- Run | Jun Mat Mat Min Mat Sto Gar Machines Disabled . | . . . . . . . Max in Single Turn . | . . . . . . . Machines Repaired . | . . . . . . . Machines Sabotaged . | . . . . . . . Overloaded Fab Kills . | . . . . . . . Hacking | -11 -10 -9 -9 -8 -8 -8 --------- Run | Jun Mat Mat Min Mat Sto Gar Machines Accessed 5 | . 1 . . . 4 . Terminals 4 | . 1 . . . 3 . Fabricators . | . . . . . . . Repair Stations . | . . . . . . . Recycling Units . | . . . . . . . Scanalyzers . | . . . . . . . Garrison Access 1 | . . . . . 1 . Total Hacks 8 | . 1 . . . 7 . Successful 7 | . 1 . . . 6 . Failed 1 | . . . . . 1 . Catastrophic . | . . . . . . . Database Lockouts . | . . . . . . . Manual 4 | . 1 . . . 3 . Terminals 5 | . 1 . . . 4 . Fabricators . | . . . . . . . Repair Stations . | . . . . . . . Recycling Units . | . . . . . . . Scanalyzers . | . . . . . . . Garrison Access 3 | . . . . . 3 . Terminal Hacks 4 | . . . . . 4 . Robot Analysis 1 | . . . . . 1 . Open Door 1 | . . . . . 1 . Recall Investigation 1 | . . . . . 1 . Zone Layout 1 | . . . . . 1 . Fabricator Hacks . | . . . . . . . Repair Station Hacks . | . . . . . . . Recycling Unit Hacks . | . . . . . . . Scanalyzer . | . . . . . . . Garrison Access Hacks 2 | . . . . . 2 . Unlock Access 1 | . . . . . 1 . Coupler Status 1 | . . . . . 1 . Unauthorized Hacks 1 | . 1 . . . . . Terminals 1 | . 1 . . . . . Track 1 | . 1 . . . . . Fabricators . | . . . . . . . Repair Stations . | . . . . . . . Recycling Units . | . . . . . . . Scanalyzers . | . . . . . . . Garrison Access . | . . . . . . . Data Cores Recovered . | . . . . . . . Used . | . . . . . . . Hacking Detections 2 | . 1 . . . 1 . Full Trace Events . | . . . . . . . Feedback Events . | . . . . . . . Feedback Blocked . | . . . . . . . Robot Schematics Acquired . | . . . . . . . Robots Built . | . . . . . . . Authchips . | . . . . . . . Time . | . . . . . . . Total Robot Build Rating . | . . . . . . . Part Schematics Acquired . | . . . . . . . Parts Built . | . . . . . . . Authchips . | . . . . . . . Time . | . . . . . . . Total Part Build Rating . | . . . . . . . Parts Repaired . | . . . . . . . Time . | . . . . . . . Parts Recycled . | . . . . . . . Recycled Matter . | . . . . . . . Retrieved Matter . | . . . . . . . Retrieved Components . | . . . . . . . Parts Scanalyzed . | . . . . . . . Part Schematics Acquired . | . . . . . . . Parts Damaged . | . . . . . . . Bothacking | -11 -10 -9 -9 -8 -8 -8 ------------ Run | Jun Mat Mat Min Mat Sto Gar Used RIF Installer . | . . . . . . . Robots Hacked . | . . . . . . . Non-combat . | . . . . . . . Combat . | . . . . . . . Robot Hacks Applied . | . . . . . . . Relay Couplers Released . | . . . . . . . Fabnet Peak Effective % . | . . . . . . . Robots Rewired . | . . . . . . . Allies Hacked . | . . . . . . . Hacks Repelled . | . . . . . . . Allies | -11 -10 -9 -9 -8 -8 -8 -------- Run | Jun Mat Mat Min Mat Sto Gar Total Allies . | . . . . . . . Largest Group . | . . . . . . . Highest-Rated Group . | . . . . . . . Highest-Rated Ally . | . . . . . . . Total Orders . | . . . . . . . Ally Attacks . | . . . . . . . Total Damage . | . . . . . . . Kills . | . . . . . . . Allies Corrupted . | . . . . . . . Allies Melted . | . . . . . . . Intel | -11 -10 -9 -9 -8 -8 -8 ------- Run | Jun Mat Mat Min Mat Sto Gar Robot Analysis Total 1 | . . . . . 1 . Derelict Logs Recovered . | . . . . . . . Drone Launches . | . . . . . . . Drone Recoveries . | . . . . . . . Exploration | -11 -10 -9 -9 -8 -8 -8 ------------- Run | Jun Mat Mat Min Mat Sto Gar Turns Passed 455 | 51 125 19 14 10 103 133 Spaces Moved 754 | 47 101 48 46 30 269 213 Core 27 | 1 . . . . . 26 Treads . | . . . . . . . Legs . | . . . . . . . Wheels 106 | 46 60 . . . . . Hover . | . . . . . . . Flight 621 | . 41 48 46 30 269 187 Fastest Speed 29 | 50 80 29 29 29 29 37 Average Speed 44 | 82 96 30 29 29 29 40 Slowest Speed 280 | 95 280 31 29 29 37 150 Overloaded Moves . | . . . . . . . Propulsion Burnouts . | . . . . . . . Robots Hopped 13 | . . 1 . . 10 2 Cave-ins Triggered . | . . . . . . . Exploration Rate (%) 23 | 4 27 8 13 6 60 46 Regions Visited 6 Branch Regions 2 Pre-discovered Areas 1 | . . . 1 . . . Known Exits Taken 1 | . . . . . 1 . Unknown Exits Taken 5 | 1 1 1 1 1 . . Scrap Searched . | . . . . . . . Spaces Dug 11 | . . . . . 11 . Terrain Destroyed 25 | . . . . . 25 . Melee . | . . . . . . . Projectile . | . . . . . . . AOE 25 | . . . . . 25 . Terrain Rammed . | . . . . . . . Walls Destroyed . | . . . . . . . Machines Disabled . | . . . . . . . Actions | -11 -10 -9 -9 -8 -8 -8 --------- Run | Jun Mat Mat Min Mat Sto Gar Total 830 | 56 119 50 45 30 275 255 Wait 4 | . 2 . . . 2 . Move 720 | 46 100 45 45 29 248 207 Hop 13 | . . 1 . . 10 2 Pick Up 8 | 4 4 . . . . . Fast Attach 13 | 6 2 1 . 1 2 1 Attach 7 | . . 2 . . 5 . Detach 2 | . . 1 . . 1 . Swap 1 | . 1 . . . . . Drop 5 | . 5 . . . . . Fire 12 | . 5 . . . 7 . Melee . | . . . . . . . Ram 10 | . . . . . . 10 Kick . | . . . . . . . Crush . | . . . . . . . Escape Stasis 35 | . . . . . . 35 Rewire . | . . . . . . . Trap . | . . . . . . . Miscellaneous . | . . . . . . . Route ------- -11/Junkyard -10/Materials -9/Materials -9/Mines -8/Materials -8/Storage (discovered 2 exits: [Rec] / Gar) -8/Garrison (discovered 1 exit: [*Fac]) History --------- Turn | Location | Event 15 | -11/Junkyard | Discovered new exit (range 16) 52 | -11/Junkyard | Entered Materials 165 | -10/Materials | Discovered new exit (range 9) 177 | -10/Materials | Entered another Materials area 177 | -9/Materials | Evolved 2 slots: Propulsion x2 190 | -9/Materials | Discovered new exit (range 6) 196 | -9/Materials | Entered Mines 202 | -9/Mines | Learned location of Storage (-8) 202 | -9/Mines | Discovered new exit (range 5) 210 | -9/Mines | Entered Materials 210 | -8/Materials | Evolved 2 slots: Propulsion x1, Utility x1 216 | -8/Materials | Discovered new exit (range 13) 220 | -8/Materials | Entered Storage 258 | -8/Storage | Discovered new exit (range 14) 311 | -8/Storage | Garrison activated, responded to threat 323 | -8/Storage | Identified exit to Garrison 323 | -8/Storage | Entered Garrison 351 | -8/Garrison | Lost 6 parts (1p4n1w) 374 | -8/Garrison | Triggered checkpoint 391 | -8/Garrison | Discovered new exit (range 13) 405 | -8/Garrison | Attempted to access garrison exit controls, blocked by remote lockdown 426 | -8/Garrison | Core integrity fell below 50% 450 | -8/Garrison | Core integrity fell below 20% 454 | -8/Garrison | Triggered checkpoint 456 | -8/Garrison | Destroyed by G-47 Trooper with Particle Gun Last Messages --------------- 00396_ Acquired Authchip [R/NC]. 00405_ Attempting to access garrison exit controls... 00405_ Remote lockdown engaged. 00425_ P-60 Hacker springs to life. 00428_ Flight Unit destroyed. 00428_ Machine disabled. 00428_ Flight Unit destroyed. 00431_ Lgt. Ion Engine destroyed. 00437_ Sml. Storage Unit destroyed. 00440_ Critical hit (Burn: +37). 00445_ Slammed into G-47 Trooper. 00445_ Destabilizing: System corrupted (+1). 00446_ Slammed into P-60 Hacker. 00449_ Slammed into G-47 Trooper. 00449_ Destabilizing: System corrupted (+1). 00450_ Slammed into G-47 Trooper. 00454_ Beams of light sweep through the air. An alarm sounds. 00454_ Slammed into G-47 Trooper. 00454_ System Shield destroyed. 00454_ System corrupted by crushing effect (+1). Map ----- +----------------------------------------------------+ | ?????????????????????????????????????????????????? | | ?????????????????????????????????????????????????? | | ?????????????????????????????????????????????????? | | ?????????????????????????????????????????????????? | | ?????????????????????????????????????????????????? | | ?????????????????????????????????????????????????? | | ?????????????????????????????????????????????????? | | ?????????????????????????#####???????????????????? | | ????????????????????????## #???????????????????? | | ???????????????????????## # #???####?######?????? | | ???????????????????????# #???#""###""""#?????? | | ???????????????????????# ##???#" """ ""#?????? | | ???????????????????????## #???#" "#?????? | | ????????????????????????# ####???# #?????? | | ????????????????????????# #??????# #?????? | | ????????????????????????# ######## "#" "#?????? | | ????????????????????????# #"""""## #" "#?????? | | ????????????????????????# ## ### "#" "#?????? | | ????????????????????????#g "#"""#?????? | | ????????????????????????# ######## """"#####?????? | | ??????????????????????###p#??????#########???????? | | ??????????????????????# pp#?????????# #???????? | | ??????????????????????# g #?????????# < #???????? | | ??????????????????????# #?????????# #???????? | | ??????????????????????### #?????????# ###???????? | | ????????????????????????#@#?????????# #?????????? | | ????????????????????????# #????####?# #?????????? | | ????????????????????????# ###### ?# #?????????? | | ????????????????????????# ## ?# #?????????? | | ????????????????????????##### ## ### #?????????? | | ????????????????????????????# ## # #?????????? | | ????????????????????????????# ## # #?????????? | | ????????????????????????????# ### # #?????????? | | ????????????????############# ### ### #?????????? | | ????????????????# #?????????? | | ????????????????# #?????????? | | ????????????????# ######### ####### #?????????? | | ????????????????# #???????# #?##### #####?????? | | ????????????????# #???????# #?#"" ""#?????? | | ????????????????# #???????# #?#" !"#?????? | | ????????????????# #???????# #?#"! !"#?????? | | ????????????????# #???????# #?#"! !"#?????? | | ?##########""""## ##??????# #?#"! !"#?????? | | ? ######## #?#"! !"#?????? | | ??? #?#"! !"#?????? | | ???? #?#"" ""#?????? | | ?????# ## ## ###########?#"""!!!!"""#?????? | | ?????# ## ## #???????????#""""""""""#?????? | | ?????" "???????????############?????? | | ?????" "????????????????????????????? | +----------------------------------------------------+ Best States ------------- Heat Dissipation 31 Energy Generation 10 Energy Capacity 250 Matter Stores 190 Matter Capacity 300 Sight Range 16 Terrain Scan Density 10 Resistance: KI 20 Resistance: TH 20 Resistance: EX 20 Resistance: EM 20 Resistance: I 20 Resistance: S 20 Resistance: P 20 Evasion (%) 64 Offensive Hacking 10 Defensive Hacking 10 Authchip Count 1 Item Schematics ----------------- None Robot Schematics ------------------ None Fabricated ------------ Nothing Alien Tech Used ----------------- None Achievements -------------- None Challenges ------------ None Game ------ Seed NeutronActuatorTorch Manual? 0 Play Time 00:11:29 Cumulative 17.6 hours Start 2023.10.21 @ 14:46:22 End 2023.10.21 @ 14:56:42 Sessions 1 Manual Loads 0 Difficulty Adventurer Special Mode None Game No. 52 Rogue 32 Adventurer 20 Explorer 0 Win Type - Total 0 Types 0/0/0/0/0/0/0/0/0 Lore% 23 Gallery% 31 Achievement% 20 Wizard Run 0 Options --------- ASCII 0 Keyboard 1 Movement Numpad Keybinds 0 Fullscreen 2 Font 18/X11 Map View 76x50 Tactical HUD 1 Map Filters NONE Filters NONE Steam 1 RUN: 38b24bdd-ab14-4e1c-895a-82ad552071f0